[Event "Mitropa Online Cup Open 2021"]
[Site "Hybrid"]
[Date "2021.05.04"]
[Round "2.16"]
[White "Dobrovoljc, Vid"]
[Black "Finek, Vaclav"]
[Result "1/2-1/2"]
[ECO "B07"]
[WhiteElo "2377"]
[BlackElo "2361"]
[Annotator "NA"]
[PlyCount "58"]
[EventDate "2021.05.04"]
[EventType "team-tourn"]
[EventCountry "NET"]
[SourceTitle "playchess.com"]
[Source "ChessBase"]
[SourceQuality "1"]
[WhiteTeam "Slovenia"]
[BlackTeam "Czech Republic"]
[WhiteTeamCountry "SLO"]
[BlackTeamCountry "CZE"]
[TimeControl "40/5400+30:1800+30"]

1. d4 {[%emt 0:00:00]} Nf6 {[%emt 0:00:22]} 2. Bf4 {[%emt 0:00:56]} g6 {[%emt 0:00:54]} 3. Nc3 {[%emt 0:00:35]} Bg7 {[%emt 0:01:29]} 4. e4 {[%emt 0:01:08]} d6 {[%emt 0:01:25]} 5. Qd2 {[%emt 0:00:52]} c5 {[%emt 0:08:33]} 6. dxc5 {[%emt 0:06:21]} dxc5 {[%emt 0:01:15]} 7. Qxd8+ {[%emt 0:07:09]} Kxd8 {[%emt 0:00:11]} 8. Bc4 {[%emt 0:05:55]} Be6 {[%emt 0:34:22]} 9. Bxe6 {[%emt 0:06:22]} fxe6 {[%emt 0:00:13]} 10. Nf3 {[%emt 0:02:53]} Nc6 {[%emt 0:03:49]} 11. Be3 {[%emt 0:02:06]} Ng4 {[%emt 0:02:01]} 12. Bxc5 {[%emt 0:03:13]} b6 {[%emt 0:01:01]} 13. h3 {[%emt 0:03:57]} Nge5 {[%emt 0:04:35]} 14. Be3 {[%emt 0:05:23]} Nxf3+ {[%emt 0:02:22]} 15. gxf3 {[%emt 0:00:11]} Rf8 {[%emt 0:01:43]} 16. Ke2 {[%emt 0:07:18]} Rc8 {[%emt 0:02:21]} 17. a3 {[%emt 0:21:00]} Na5 {[%emt 0:08:52]} 18. Rad1+ {[%emt 0:08:24]} Ke8 {[%emt 0:00:45]} 19. Bd4 {[%emt 0:03:23]} Bxd4 {[%emt 0:03:21]} 20. Rxd4 {[%emt 0:00:17]} Nc4 {[%emt 0:01:10]} 21. Nd1 {[%emt 0:01:11]} Ne5 {[%emt 0:02:08]} 22. Ne3 {[%emt 0:01:07]} Nxf3 {[%emt 0:01:02]} 23. Ra4 {[%emt 0:01:00]} Rc7 {[%emt 0:01:50]} 24. c3 {[%emt 0:01:36]} Ne5 {[%emt 0:01:25]} 25. Rd4 {[%emt 0:01:15]} Rc8 {[%emt 0:02:29]} 26. Ng4 {[%emt 0:03:34]} Nc4 {[%emt 0:02:06]} 27. Ne3 {[%emt 0:00:36]} Ne5 {[%emt 0:01:47]} 28. Ng4 {[%emt 0:00:11]} Nc4 {[%emt 0:04:09]} 29. Ne3 {[%emt 0:00:39]} Ne5 {[%emt 0:01:29]} 1/2-1/2

[Event "Mitropa Online Cup Open 2021"]
[Site "Hybrid"]
[Date "2021.05.04"]
[Round "2.18"]
[White "Kovacevic, Blazimir"]
[Black "Studer, Noel"]
[Result "1/2-1/2"]
[ECO "D02"]
[WhiteElo "2410"]
[BlackElo "2579"]
[Annotator "ChessBase"]
[PlyCount "61"]
[EventDate "2021.05.04"]
[EventType "team-tourn"]
[EventCountry "NET"]
[SourceTitle "playchess.com"]
[Source "ChessBase"]
[SourceQuality "1"]
[WhiteTeam "Croatia"]
[BlackTeam "Switzerland"]
[WhiteTeamCountry "CRO"]
[BlackTeamCountry "SUI"]
[TimeControl "40/5400+30:1800+30"]

1. Nf3 {[%emt 0:00:00]} d5 {[%emt 0:00:04]} 2. g3 {[%emt 0:00:12]} Nf6 {[%emt 0:00:04]} 3. Bg2 {[%emt 0:00:05]} e6 {[%emt 0:00:06]} 4. O-O {[%emt 0:00:25]} c5 {[%emt 0:00:03]} 5. d4 {[%emt 0:00:13]} cxd4 {[%emt 0:00:04]} 6. Nxd4 {[%emt 0:00:03]} e5 {[%emt 0:00:03]} 7. Nb3 {[%emt 0:00:01]} Be6 {[%emt 0:00:43]} 8. c4 {[%emt 0:00:21]} Nc6 {[%emt 0:00:08]} 9. cxd5 {[%emt 0:00:07]} Nxd5 {[%emt 0:00:04]} 10. N1d2 {[%emt 0:00:13]} h6 {[%emt 0:03:18]} 11. Ne4 {[%emt 0:01:33]} Qb6 {[%emt 0:00:35]} 12. Nd6+ {[%emt 0:03:07]} Bxd6 {[%emt 0:00:03]} 13. Bxd5 {[%emt 0:00:03]} Bxd5 {[%emt 0:01:33]} 14. Qxd5 {[%emt 0:00:08]} Rd8 {[%emt 0:01:18]} 15. Be3 {[%emt 0:02:35]} Qa6 {[%emt 0:04:17]} 16. a4 {[%emt 0:07:31]} Qxe2 {[%emt 0:03:07]} 17. Qb5 {[%emt 0:04:06]} Qg4 {[%emt 0:10:52]} 18. Qxb7 {[%emt 0:03:03]} Qc8 {[%emt 0:00:06]} 19. Nc5 {[%emt 0:17:08]} O-O {[%emt 0:07:31]} 20. Rfd1 {[%emt 0:22:37]} Nd4 {[%emt 0:16:08]} 21. Qxc8 {[%emt 0:05:49]} Rxc8 {[%emt 0:01:39]} 22. Ne4 {[%emt 0:00:12]} Rfd8 {[%emt 0:00:18]} 23. Bxd4 {[%emt 0:22:29]} exd4 {[%emt 0:00:04]} 24. Nxd6 {[%emt 0:04:59]} Rxd6 {[%emt 0:00:55]} 25. Rd3 {[%emt 0:00:04]} Rc2 {[%emt 0:05:21]} 26. Rad1 {[%emt 0:00:17]} Rxb2 {[%emt 0:00:03]} 27. Rxd4 {[%emt 0:00:03]} Rxd4 {[%emt 0:00:42]} 28. Rxd4 {[%emt 0:00:04]} Ra2 {[%emt 0:00:02]} 29. Rd8+ {[%emt 0:01:25]} Kh7 {[%emt 0:00:03]} 30. Rd7 {[%emt 0:00:04]} Rxa4 {[%emt 0:00:03]} 31. Rxf7 {[%emt 0:00:03]} 1/2-1/2

[Event "Mitropa Online Cup Open 2021"]
[Site "Hybrid"]
[Date "2021.05.04"]
[Round "2.19"]
[White "Baenziger, Fabian"]
[Black "Zelcic, Robert"]
[Result "1-0"]
[ECO "E45"]
[WhiteElo "2400"]
[BlackElo "2539"]
[Annotator "ChessBase"]
[PlyCount "77"]
[EventDate "2021.05.04"]
[EventType "team-tourn"]
[EventCountry "NET"]
[SourceTitle "playchess.com"]
[Source "ChessBase"]
[SourceQuality "1"]
[WhiteTeam "Switzerland"]
[BlackTeam "Croatia"]
[WhiteTeamCountry "SUI"]
[BlackTeamCountry "CRO"]
[TimeControl "40/5400+30:1800+30"]

1. d4 {[%emt 0:00:00]} Nf6 {[%emt 0:00:57]} 2. c4 {[%emt 0:00:10]} e6 {[%emt 0:00:40]} 3. Nc3 {[%emt 0:00:15]} Bb4 {[%emt 0:00:10]} 4. e3 {[%emt 0:00:07]} b6 {[%emt 0:00:07]} 5. Nge2 {[%emt 0:00:15]} Ba6 {[%emt 0:02:08]} 6. a3 {[%emt 0:00:18]} Bxc3+ {[%emt 0:00:06]} 7. Nxc3 {[%emt 0:00:04]} d5 {[%emt 0:00:10]} 8. b3 {[%emt 0:00:24]} O-O {[%emt 0:00:09]} 9. Be2 {[%emt 0:00:07]} Qe7 {[%emt 0:02:57]} 10. O-O {[%emt 0:11:23]} Rd8 {[%emt 0:00:23]} 11. Qc2 {[%emt 0:10:33]} c5 {[%emt 0:01:04]} 12. dxc5 {[%emt 0:04:54]} bxc5 {[%emt 0:01:07]} 13. cxd5 {[%emt 0:04:37]} Bxe2 {[%emt 0:04:14]} 14. Nxe2 {[%emt 0:09:39]} Nxd5 {[%emt 0:22:45]} 15. Bb2 {[%emt 0:08:53]} Nd7 {[%emt 0:00:54]} 16. Rfd1 {[%emt 0:01:09]} Rab8 {[%emt 0:05:37]} 17. Ng3 {[%emt 0:08:37]} N5f6 {[%emt 0:07:18]} 18. Rac1 {[%emt 0:01:19]} Rb6 {[%emt 0:23:34]} 19. Rd3 {[%emt 0:06:54]} e5 {[%emt 0:06:54]} 20. Qc4 {[%emt 0:05:52]} Rdb8 {[%emt 0:04:51]} 21. Rcd1 {[%emt 0:01:20]} Nf8 {[%emt 0:00:12]} 22. Nf1 {[%emt 0:05:04]} h6 {[%emt 0:00:20]} 23. Nd2 {[%emt 0:00:32]} Ng6 {[%emt 0:01:08]} 24. h3 {[%emt 0:01:08]} Rd6 {[%emt 0:03:11]} 25. Nb1 {[%emt 0:04:34]} Rxd3 {[%emt 0:01:20]} 26. Rxd3 {[%emt 0:00:07]} Qb7 {[%emt 0:00:50]} 27. Nd2 {[%emt 0:01:03]} Qb6 {[%emt 0:00:44]} 28. Qc2 {[%emt 0:00:31]} Rd8 {[%emt 0:01:23]} 29. Nc4 {[%emt 0:00:36]} e4 {[%emt 0:02:50]} 30. Rxd8+ {[%emt 0:07:07]} Qxd8 {[%emt 0:00:07]} 31. Bxf6 {[%emt 0:00:01]} gxf6 {[%emt 0:00:08]} 32. Qxe4 {[%emt 0:00:24]} Qd1+ {[%emt 0:00:14]} 33. Kh2 {[%emt 0:00:01]} Qxb3 {[%emt 0:00:05]} 34. f4 {[%emt 0:01:46]} Qb8 {[%emt 0:01:49]} 35. Qd5 {[%emt 0:00:13]} Qc7 {[%emt 0:02:42]} 36. Nd6 {[%emt 0:00:05]} h5 {[%emt 0:02:26]} 37. Ne4 {[%emt 0:02:17]} c4 {[%emt 0:00:06]} 38. Nxf6+ {[%emt 0:00:21]} Kf8 {[%emt 0:00:14]} 39. Qa8+ {[%emt 0:00:07]} 1-0

[Event "Mitropa Online Cup Open 2021"]
[Site "Hybrid"]
[Date "2021.05.04"]
[Round "2.20"]
[White "Tica, Sven"]
[Black "Fecker, Noah"]
[Result "1-0"]
[ECO "D02"]
[WhiteElo "2396"]
[BlackElo "2308"]
[Annotator "NA"]
[PlyCount "61"]
[EventDate "2021.05.04"]
[EventType "team-tourn"]
[EventCountry "NET"]
[SourceTitle "playchess.com"]
[Source "ChessBase"]
[SourceQuality "1"]
[WhiteTeam "Croatia"]
[BlackTeam "Switzerland"]
[WhiteTeamCountry "CRO"]
[BlackTeamCountry "SUI"]
[TimeControl "40/5400+30:1800+30"]

1. d4 {[%emt 0:00:00]} Nf6 {[%emt 0:00:04]} 2. Nf3 {[%emt 0:00:04]} g6 {[%emt 0:00:16]} 3. Nbd2 {[%emt 0:00:04]} d5 {[%emt 0:01:15]} 4. e3 {[%emt 0:00:06]} Bg7 {[%emt 0:01:35]} 5. b4 {[%emt 0:00:03]} O-O {[%emt 0:02:21]} 6. c4 {[%emt 0:00:26]} a5 {[%emt 0:08:17]} 7. b5 {[%emt 0:00:54]} c5 {[%emt 0:03:48]} 8. dxc5 {[%emt 0:00:36]} Nfd7 {[%emt 0:05:11]} 9. Ba3 {[%emt 0:33:53]} Bxa1 {[%emt 0:03:15]} 10. Qxa1 {[%emt 0:00:07]} Nf6 {[%emt 0:03:26]} 11. cxd5 {[%emt 0:07:19]} Nxd5 {[%emt 0:03:52]} 12. Bc4 {[%emt 0:01:27]} Nf6 {[%emt 0:16:24]} 13. Qc3 {[%emt 0:07:43]} Bg4 {[%emt 0:04:50]} 14. Nd4 {[%emt 0:12:25]} e5 {[%emt 0:21:50]} 15. N4f3 {[%emt 0:08:32]} Be6 {[%emt 0:05:55]} 16. Bxe6 {[%emt 0:06:32]} fxe6 {[%emt 0:00:04]} 17. c6 {[%emt 0:00:40]} Rf7 {[%emt 0:03:55]} 18. Nxe5 {[%emt 0:04:03]} Rc7 {[%emt 0:03:17]} 19. Bb2 {[%emt 0:03:54]} bxc6 {[%emt 0:02:04]} 20. b6 {[%emt 0:00:51]} Rb7 {[%emt 0:00:47]} 21. Ng4 {[%emt 0:00:37]} Nbd7 {[%emt 0:00:06]} 22. Ne4 {[%emt 0:01:02]} e5 {[%emt 0:01:19]} 23. Nexf6+ {[%emt 0:00:50]} Nxf6 {[%emt 0:00:05]} 24. Qxe5 {[%emt 0:00:11]} Nxg4 {[%emt 0:02:17]} 25. Qh8+ {[%emt 0:00:30]} Kf7 {[%emt 0:00:01]} 26. Qxh7+ {[%emt 0:00:23]} Ke8 {[%emt 0:00:01]} 27. Qxb7 {[%emt 0:01:13]} Qc8 {[%emt 0:00:15]} 28. Qg7 {[%emt 0:00:51]} Qf5 {[%emt 0:00:08]} 29. O-O {[%emt 0:00:58]} Rd8 {[%emt 0:00:14]} 30. b7 {[%emt 0:01:40]} Nxf2 {[%emt 0:00:18]} 31. Qg8+ {[%emt 0:00:10]} 1-0

[Event "Mitropa Online Cup Open 2021"]
[Site "Hybrid"]
[Date "2021.05.04"]
[Round "4.1"]
[White "Antal, Gergely"]
[Black "Parvanyan, Ashot"]
[Result "0-1"]
[ECO "C03"]
[WhiteElo "2572"]
[BlackElo "2436"]
[Annotator "ChessBase"]
[PlyCount "72"]
[EventDate "2021.05.04"]
[EventType "team-tourn"]
[EventCountry "NET"]
[SourceTitle "playchess.com"]
[Source "ChessBase"]
[SourceQuality "1"]
[WhiteTeam "Hungary"]
[BlackTeam "Germany"]
[WhiteTeamCountry "HUN"]
[BlackTeamCountry "GER"]
[TimeControl "40/5400+30:1800+30"]

1. e4 {[%emt 0:00:00]} e6 {[%emt 0:00:21]} 2. d4 {[%emt 0:00:08]} d5 {[%emt 0:00:07]} 3. Nd2 {[%emt 0:00:05]} Be7 {[%emt 0:00:30]} 4. c3 {[%emt 0:01:10]} c5 {[%emt 0:01:17]} 5. dxc5 {[%emt 0:00:48]} Nf6 {[%emt 0:00:32]} 6. e5 {[%emt 0:01:05]} Nfd7 {[%emt 0:01:04]} 7. f4 {[%emt 0:00:48]} a5 {[%emt 0:14:27]} 8. Ngf3 {[%emt 0:08:18]} a4 {[%emt 0:04:09]} 9. Bb5 {[%emt 0:02:45]} Qa5 {[%emt 0:00:41]} 10. Nd4 {[%emt 0:02:19]} O-O {[%emt 0:11:31]} 11. b4 {[%emt 0:35:10]} axb3 {[%emt 0:01:19]} 12. N2xb3 {[%emt 0:00:08]} Qc7 {[%emt 0:05:09]} 13. O-O {[%emt 0:00:30]} Nxc5 {[%emt 0:02:43]} 14. Nxc5 {[%emt 0:00:22]} Bxc5 {[%emt 0:00:54]} 15. Kh1 {[%emt 0:01:49]} Nc6 {[%emt 0:03:38]} 16. Be3 {[%emt 0:03:04]} Ne7 {[%emt 0:13:25]} 17. Bd3 {[%emt 0:00:35]} Nf5 {[%emt 0:13:43]} 18. Bxf5 {[%emt 0:10:17]} exf5 {[%emt 0:00:16]} 19. Nb5 {[%emt 0:00:10]} Qb6 {[%emt 0:01:36]} 20. Bxc5 {[%emt 0:00:20]} Qxc5 {[%emt 0:00:08]} 21. Nd6 {[%emt 0:00:16]} Ra3 {[%emt 0:05:10]} 22. Rf3 {[%emt 0:02:20]} b6 {[%emt 0:09:23]} 23. Qc2 {[%emt 0:02:38]} g6 {[%emt 0:02:34]} 24. Rb1 {[%emt 0:01:28]} Bd7 {[%emt 0:01:31]} 25. h3 {[%emt 0:12:59]} Rfa8 {[%emt 0:01:19]} 26. Rb2 {[%emt 0:00:13]} Qa5 {[%emt 0:01:11]} 27. Qf2 {[%emt 0:05:17]} Rxc3 {[%emt 0:01:57]} 28. Rxc3 {[%emt 0:00:59]} Qxc3 {[%emt 0:00:02]} 29. Rc2 {[%emt 0:02:20]} Qb4 {[%emt 0:02:30]} 30. Rc7 {[%emt 0:00:56]} Be6 {[%emt 0:00:05]} 31. Qh4 {[%emt 0:02:14]} Rf8 {[%emt 0:00:11]} 32. Re7 {[%emt 0:01:17]} Qa4 {[%emt 0:00:54]} 33. Kh2 {[%emt 0:02:57]} d4 {[%emt 0:00:12]} 34. Qf6 {[%emt 0:00:36]} d3 {[%emt 0:00:20]} 35. Rxe6 {[%emt 0:00:34]} Qxf4+ {[%emt 0:00:11]} 36. Kh1 {[%emt 0:00:13]} d2 {[%emt 0:00:08]} 0-1

[Event "Mitropa Online Cup Open 2021"]
[Site "Hybrid"]
[Date "2021.05.04"]
[Round "4.1"]
[White "Koellner, Ruben Gideon"]
[Black "Nagy, Gabor"]
[Result "1/2-1/2"]
[ECO "D02"]
[WhiteElo "2412"]
[BlackElo "2511"]
[Annotator "ChessBase"]
[PlyCount "83"]
[EventDate "2021.05.04"]
[EventType "team-tourn"]
[EventCountry "NET"]
[SourceTitle "playchess.com"]
[Source "ChessBase"]
[SourceQuality "1"]
[WhiteTeam "Germany"]
[BlackTeam "Hungary"]
[WhiteTeamCountry "GER"]
[BlackTeamCountry "HUN"]
[TimeControl "40/5400+30:1800+30"]

1. d4 {[%emt 0:00:00]} Nf6 {[%emt 0:00:08]} 2. Nf3 {[%emt 0:00:06]} g6 {[%emt 0:00:09]} 3. Nbd2 {[%emt 0:00:06]} d5 {[%emt 0:00:09]} 4. e3 {[%emt 0:00:03]} Bg7 {[%emt 0:00:07]} 5. b4 {[%emt 0:00:03]} a5 {[%emt 0:00:26]} 6. b5 {[%emt 0:00:03]} c5 {[%emt 0:00:11]} 7. bxc6 {[%emt 0:00:03]} Nxc6 {[%emt 0:00:09]} 8. Be2 {[%emt 0:00:45]} O-O {[%emt 0:00:24]} 9. a4 {[%emt 0:00:11]} Bf5 {[%emt 0:05:45]} 10. c3 {[%emt 0:00:10]} e5 {[%emt 0:06:40]} 11. Ba3 {[%emt 0:01:56]} Re8 {[%emt 0:01:16]} 12. h3 {[%emt 0:00:23]} Ne4 {[%emt 0:08:23]} 13. Rc1 {[%emt 0:01:26]} exd4 {[%emt 0:03:36]} 14. Nxe4 {[%emt 0:15:56]} Bxe4 {[%emt 0:09:00]} 15. cxd4 {[%emt 0:01:40]} Bxf3 {[%emt 0:00:51]} 16. Bxf3 {[%emt 0:05:26]} Nxd4 {[%emt 0:00:28]} 17. O-O {[%emt 0:00:05]} Nxf3+ {[%emt 0:00:31]} 18. Qxf3 {[%emt 0:00:04]} Qd7 {[%emt 0:00:55]} 19. Rfd1 {[%emt 0:08:23]} Rad8 {[%emt 0:04:52]} 20. Rb1 {[%emt 0:03:32]} Re5 {[%emt 0:04:35]} 21. Rb5 {[%emt 0:03:17]} Rf5 {[%emt 0:00:30]} 22. Qe2 {[%emt 0:02:53]} d4 {[%emt 0:01:39]} 23. exd4 {[%emt 0:22:10]} Rxb5 {[%emt 0:01:46]} 24. axb5 {[%emt 0:00:18]} Bxd4 {[%emt 0:01:20]} 25. Kh1 {[%emt 0:01:54]} Qe6 {[%emt 0:03:09]} 26. Qd2 {[%emt 0:06:20]} Qb6 {[%emt 0:00:42]} 27. Be7 {[%emt 0:11:15]} Re8 {[%emt 0:00:58]} 28. Bh4 {[%emt 0:00:34]} Re4 {[%emt 0:03:20]} 29. Bg3 {[%emt 0:01:46]} Bf6 {[%emt 0:03:04]} 30. Qd7 {[%emt 0:03:03]} Re6 {[%emt 0:05:36]} 31. Bc7 {[%emt 0:07:18]} Qxf2 {[%emt 0:00:51]} 32. Bxa5 {[%emt 0:00:33]} b6 {[%emt 0:08:06]} 33. Qc8+ {[%emt 0:00:59]} Kg7 {[%emt 0:01:03]} 34. Bb4 {[%emt 0:00:05]} Be7 {[%emt 0:04:05]} 35. Bc3+ {[%emt 0:00:06]} Kh6 {[%emt 0:05:11]} 36. Qg8 {[%emt 0:00:53]} Re2 {[%emt 0:01:14]} 37. Qg7+ {[%emt 0:01:20]} Kg5 {[%emt 0:00:08]} 38. Rd5+ {[%emt 0:00:46]} f5 {[%emt 0:00:18]} 39. Bd2+ {[%emt 0:00:51]} Rxd2 {[%emt 0:00:06]} 40. Qxe7+ {[%emt 0:00:00]} Kh6 {[%emt 0:00:00]} 41. Rxd2 {[%emt 0:03:19]} Qxd2 {[%emt 0:00:48]} 42. Qh4+ {[%emt 0:00:06]} 1/2-1/2

[Event "Mitropa Online Cup Open 2021"]
[Site "Hybrid"]
[Date "2021.05.04"]
[Round "4.1"]
[White "Borhy, Marcell"]
[Black "Krastev, Alexander"]
[Result "0-1"]
[ECO "E90"]
[WhiteElo "2406"]
[BlackElo "2367"]
[Annotator "NA"]
[PlyCount "70"]
[EventDate "2021.05.04"]
[EventType "team-tourn"]
[EventCountry "NET"]
[SourceTitle "playchess.com"]
[Source "ChessBase"]
[SourceQuality "1"]
[WhiteTeam "Hungary"]
[BlackTeam "Germany"]
[WhiteTeamCountry "HUN"]
[BlackTeamCountry "GER"]
[TimeControl "40/5400+30:1800+30"]

1. d4 {[%emt 0:00:00]} Nf6 {[%emt 0:00:06]} 2. c4 {[%emt 0:00:06]} e6 {[%emt 0:00:05]} 3. Nf3 {[%emt 0:00:10]} c5 {[%emt 0:00:14]} 4. d5 {[%emt 0:01:11]} d6 {[%emt 0:00:12]} 5. Nc3 {[%emt 0:00:08]} g6 {[%emt 0:00:28]} 6. e4 {[%emt 0:00:26]} Bg7 {[%emt 0:00:07]} 7. h3 {[%emt 0:01:01]} O-O {[%emt 0:00:07]} 8. Bd3 {[%emt 0:00:06]} Nbd7 {[%emt 0:00:07]} 9. Be3 {[%emt 0:00:37]} a6 {[%emt 0:11:33]} 10. dxe6 {[%emt 0:11:14]} fxe6 {[%emt 0:00:26]} 11. Qd2 {[%emt 0:01:23]} b6 {[%emt 0:26:26]} 12. Rd1 {[%emt 0:05:54]} Bb7 {[%emt 0:08:47]} 13. Bb1 {[%emt 0:09:25]} Ne8 {[%emt 0:01:33]} 14. h4 {[%emt 0:17:02]} b5 {[%emt 0:11:43]} 15. cxb5 {[%emt 0:03:35]} axb5 {[%emt 0:00:45]} 16. Nxb5 {[%emt 0:03:30]} d5 {[%emt 0:02:09]} 17. b3 {[%emt 0:03:00]} Qb6 {[%emt 0:09:46]} 18. a4 {[%emt 0:00:57]} Nef6 {[%emt 0:00:59]} 19. e5 {[%emt 0:07:20]} Ng4 {[%emt 0:00:49]} 20. h5 {[%emt 0:01:54]} Rxf3 {[%emt 0:03:04]} 21. gxf3 {[%emt 0:02:24]} Ngxe5 {[%emt 0:00:03]} 22. Rh3 {[%emt 0:03:43]} d4 {[%emt 0:01:46]} 23. hxg6 {[%emt 0:03:57]} Nxf3+ {[%emt 0:04:31]} 24. Rxf3 {[%emt 0:00:17]} Bxf3 {[%emt 0:00:02]} 25. gxh7+ {[%emt 0:00:10]} Kh8 {[%emt 0:00:02]} 26. Bh6 {[%emt 0:03:13]} Bxh6 {[%emt 0:01:57]} 27. Qxh6 {[%emt 0:00:05]} Bxd1 {[%emt 0:00:04]} 28. Kxd1 {[%emt 0:00:46]} Qc6 {[%emt 0:00:51]} 29. Ke2 {[%emt 0:04:46]} Rf8 {[%emt 0:00:57]} 30. Qh3 {[%emt 0:03:19]} Qd5 {[%emt 0:00:50]} 31. Qg3 {[%emt 0:00:57]} e5 {[%emt 0:07:54]} 32. Bd3 {[%emt 0:07:02]} e4 {[%emt 0:02:15]} 33. Bc4 {[%emt 0:00:21]} Qh5+ {[%emt 0:00:02]} 34. Ke1 {[%emt 0:01:50]} Qh1+ {[%emt 0:00:54]} 35. Kd2 {[%emt 0:02:46]} Rxf2+ {[%emt 0:00:39]} 0-1

[Event "Mitropa Online Cup Open 2021"]
[Site "Hybrid"]
[Date "2021.05.04"]
[Round "4.2"]
[White "Gazik, Viktor"]
[Black "Dragnev, Valentin"]
[Result "1/2-1/2"]
[ECO "B90"]
[WhiteElo "2542"]
[BlackElo "2559"]
[Annotator "ChessBase"]
[PlyCount "58"]
[EventDate "2021.05.04"]
[EventType "team-tourn"]
[EventCountry "NET"]
[SourceTitle "playchess.com"]
[Source "ChessBase"]
[SourceQuality "1"]
[WhiteTeam "Slovakia"]
[BlackTeam "Austria"]
[WhiteTeamCountry "SVK"]
[BlackTeamCountry "AUT"]
[TimeControl "40/5400+30:1800+30"]

1. e4 {[%emt 0:00:00]} c5 {[%emt 0:00:25]} 2. Nf3 {[%emt 0:00:43]} d6 {[%emt 0:00:07]} 3. Nc3 {[%emt 0:01:40]} Nf6 {[%emt 0:00:09]} 4. d4 {[%emt 0:00:17]} cxd4 {[%emt 0:00:07]} 5. Nxd4 {[%emt 0:00:02]} a6 {[%emt 0:00:08]} 6. Nb3 {[%emt 0:04:19]} e6 {[%emt 0:02:59]} 7. g4 {[%emt 0:00:31]} h6 {[%emt 0:02:46]} 8. Be3 {[%emt 0:15:06]} Qc7 {[%emt 0:04:03]} 9. Bg2 {[%emt 0:08:39]} Nbd7 {[%emt 0:14:19]} 10. h4 {[%emt 0:05:29]} h5 {[%emt 0:01:12]} 11. g5 {[%emt 0:00:21]} Ng4 {[%emt 0:00:41]} 12. Bd4 {[%emt 0:00:48]} b5 {[%emt 0:02:12]} 13. f3 {[%emt 0:07:20]} Nge5 {[%emt 0:00:41]} 14. f4 {[%emt 0:01:29]} Nc4 {[%emt 0:01:19]} 15. Qe2 {[%emt 0:00:51]} b4 {[%emt 0:04:09]} 16. Nd5 {[%emt 0:04:21]} exd5 {[%emt 0:01:00]} 17. exd5+ {[%emt 0:00:04]} Be7 {[%emt 0:08:28]} 18. O-O {[%emt 0:15:17]} Ndb6 {[%emt 0:00:39]} 19. Rae1 {[%emt 0:04:57]} Bg4 {[%emt 0:01:52]} 20. Qf2 {[%emt 0:00:56]} O-O {[%emt 0:10:19]} 21. Na5 {[%emt 0:01:06]} Bd8 {[%emt 0:07:12]} 22. Nc6 {[%emt 0:01:32]} Nc8 {[%emt 0:08:29]} 23. b3 {[%emt 0:08:14]} Na5 {[%emt 0:01:10]} 24. Nxd8 {[%emt 0:03:34]} Qxd8 {[%emt 0:01:30]} 25. f5 {[%emt 0:01:44]} Nb7 {[%emt 0:01:00]} 26. Bf3 {[%emt 0:02:23]} Bh3 {[%emt 0:02:36]} 27. Bg2 {[%emt 0:00:34]} Bg4 {[%emt 0:00:15]} 28. Bf3 {[%emt 0:00:07]} Bh3 {[%emt 0:00:43]} 29. Bg2 {[%emt 0:00:06]} Bg4 {[%emt 0:03:16]} 1/2-1/2

[Event "Mitropa Online Cup Open 2021"]
[Site "Hybrid"]
[Date "2021.05.04"]
[Round "4.2"]
[White "Druska, Juraj"]
[Black "Froewis, Georg"]
[Result "1-0"]
[ECO "A13"]
[WhiteElo "2494"]
[BlackElo "2460"]
[Annotator "ChessBase"]
[PlyCount "93"]
[EventDate "2021.05.04"]
[EventType "team-tourn"]
[EventCountry "NET"]
[SourceTitle "playchess.com"]
[Source "ChessBase"]
[SourceQuality "1"]
[WhiteTeam "Slovakia"]
[BlackTeam "Austria"]
[WhiteTeamCountry "SVK"]
[BlackTeamCountry "AUT"]
[TimeControl "40/5400+30:1800+30"]

1. c4 {[%emt 0:00:00]} e6 {[%emt 0:00:06]} 2. g3 {[%emt 0:00:26]} d5 {[%emt 0:00:24]} 3. Bg2 {[%emt 0:00:09]} Nf6 {[%emt 0:00:12]} 4. Nf3 {[%emt 0:00:25]} dxc4 {[%emt 0:00:09]} 5. Qa4+ {[%emt 0:00:16]} c6 {[%emt 0:00:12]} 6. Qxc4 {[%emt 0:00:59]} b5 {[%emt 0:00:05]} 7. Qc2 {[%emt 0:01:51]} Bb7 {[%emt 0:00:06]} 8. O-O {[%emt 0:08:20]} c5 {[%emt 0:00:43]} 9. a4 {[%emt 0:04:31]} b4 {[%emt 0:02:41]} 10. Rd1 {[%emt 0:07:56]} Nbd7 {[%emt 0:00:32]} 11. d3 {[%emt 0:05:41]} Be7 {[%emt 0:00:43]} 12. Nbd2 {[%emt 0:00:36]} O-O {[%emt 0:00:23]} 13. Nc4 {[%emt 0:01:54]} Rc8 {[%emt 0:01:23]} 14. b3 {[%emt 0:13:52]} Bxf3 {[%emt 0:18:42]} 15. Bxf3 {[%emt 0:01:02]} Nd5 {[%emt 0:00:05]} 16. Bb2 {[%emt 0:08:06]} Bf6 {[%emt 0:01:01]} 17. d4 {[%emt 0:00:33]} cxd4 {[%emt 0:00:47]} 18. Bxd4 {[%emt 0:01:16]} Bxd4 {[%emt 0:04:53]} 19. Rxd4 {[%emt 0:00:20]} N7b6 {[%emt 0:04:52]} 20. Qd2 {[%emt 0:02:45]} Qf6 {[%emt 0:03:59]} 21. Nxb6 {[%emt 0:01:38]} Nxb6 {[%emt 0:00:49]} 22. a5 {[%emt 0:07:50]} Nd5 {[%emt 0:01:53]} 23. Bxd5 {[%emt 0:01:52]} exd5 {[%emt 0:00:28]} 24. Rd1 {[%emt 0:00:46]} g6 {[%emt 0:02:34]} 25. Rxb4 {[%emt 0:04:52]} Rfe8 {[%emt 0:05:00]} 26. Rb7 {[%emt 0:07:45]} Qf5 {[%emt 0:05:08]} 27. Qxd5 {[%emt 0:05:41]} Rc1 {[%emt 0:03:45]} 28. Qd2 {[%emt 0:08:30]} Rc2 {[%emt 0:01:15]} 29. Re7 {[%emt 0:04:07]} Rxe7 {[%emt 0:04:55]} 30. Qd8+ {[%emt 0:00:04]} Kg7 {[%emt 0:00:03]} 31. Qxe7 {[%emt 0:00:01]} Qxa5 {[%emt 0:00:13]} 32. Rd7 {[%emt 0:00:23]} Qa1+ {[%emt 0:03:00]} 33. Kg2 {[%emt 0:00:04]} Qf6 {[%emt 0:00:08]} 34. Rxa7 {[%emt 0:01:02]} Rb2 {[%emt 0:00:12]} 35. Qe3 {[%emt 0:00:56]} Qf5 {[%emt 0:01:06]} 36. Qd4+ {[%emt 0:00:26]} Qf6 {[%emt 0:00:04]} 37. Qe3 {[%emt 0:00:03]} Qf5 {[%emt 0:00:03]} 38. Rb7 {[%emt 0:01:23]} Rc2 {[%emt 0:03:10]} 39. Qd4+ {[%emt 0:00:33]} Kh6 {[%emt 0:00:05]} 40. Qe3+ {[%emt 0:00:00]} Kg7 {[%emt 0:00:00]} 41. Qd4+ {[%emt 0:08:37]} Kh6 {[%emt 0:00:25]} 42. e4 {[%emt 0:00:35]} Qe6 {[%emt 0:01:24]} 43. Rb6 {[%emt 0:03:23]} Qe7 {[%emt 0:01:09]} 44. Rf6 {[%emt 0:00:23]} Re2 {[%emt 0:01:22]} 45. Rf4 {[%emt 0:01:12]} g5 {[%emt 0:00:58]} 46. Rf6+ {[%emt 0:00:46]} Kh5 {[%emt 0:00:06]} 47. h3 {[%emt 0:00:17]} 1-0